[Event "6th Heraklion Fischer 2019"]
[Site "Heraklion"]
[Date "2019.04.29"]
[Round "1.2"]
[White "Oglaza, Oskar"]
[Black "Rozentalis, Eduardas"]
[Result "1/2-1/2"]
[ECO "C18"]
[WhiteElo "2338"]
[BlackElo "2568"]
[Annotator "RC"]
[PlyCount "76"]
[EventDate "2019.04.29"]
[EventType "tourn"]
[EventCountry "GRE"]
[SourceTitle "playchess.com"]
[Source "ChessBase"]
[SourceQuality "1"]
[TimeControl "40/5400+30:1800+30"]

1. e4 {[%emt 0:00:00]} e6 {[%emt 0:00:00]} 2. d4 {[%emt 0:00:00]} d5 {[%emt 0:00:02]} 3. Nc3 {[%emt 0:00:00]} Bb4 {[%emt 0:01:14]} 4. e5 {[%emt 0:00:00]} c5 {[%emt 0:01:17]} 5. a3 {[%emt 0:00:11]} Bxc3+ {[%emt 0:00:12]} 6. bxc3 {[%emt 0:00:08]} Ne7 {[%emt 0:01:45]} 7. Qg4 {[%emt 0:00:13]} Nf5 {[%emt 0:00:21]} 8. Bd3 {[%emt 0:03:02]} h5 {[%emt 0:00:30]} 9. Qf4 {[%emt 0:00:26]} Nc6 {[%emt 0:00:31]} 10. Nf3 {[%emt 0:07:52]} Nce7 {[%emt 0:01:18]} 11. dxc5 {[%emt 0:05:03]} Qc7 {[%emt 0:02:46]} 12. Bxf5 {[%emt 0:19:46]} Nxf5 {[%emt 0:00:35]} 13. Nd4 {[%emt 0:00:19]} Qxc5 {[%emt 0:03:31]} 14. Nxf5 {[%emt 0:07:06]} exf5 {[%emt 0:02:24]} 15. Qd4 {[%emt 0:02:39]} Qxd4 {[%emt 0:01:44]} 16. cxd4 {[%emt 0:00:09]} Bd7 {[%emt 0:00:07]} 17. Bd2 {[%emt 0:02:16]} Rc8 {[%emt 0:04:21]} 18. c3 {[%emt 0:01:46]} Rc4 {[%emt 0:01:20]} 19. Rb1 {[%emt 0:01:33]} b6 {[%emt 0:04:21]} 20. Rb4 {[%emt 0:06:13]} Rxb4 {[%emt 0:05:44]} 21. cxb4 {[%emt 0:02:32]} h4 {[%emt 0:03:02]} 22. f3 {[%emt 0:04:15]} Bb5 {[%emt 0:05:09]} 23. Kf2 {[%emt 0:01:28]} Kd7 {[%emt 0:00:15]} 24. Rc1 {[%emt 0:00:30]} Rh5 {[%emt 0:05:27]} 25. a4 {[%emt 0:09:46]} Bc4 {[%emt 0:01:31]} 26. a5 {[%emt 0:10:47]} bxa5 {[%emt 0:11:41]} 27. bxa5 {[%emt 0:03:39]} Rh8 {[%emt 0:01:40]} 28. Rb1 {[%emt 0:00:07]} Ba6 {[%emt 0:00:27]} 29. Bb4 {[%emt 0:04:12]} Rb8 {[%emt 0:05:12]} 30. g3 {[%emt 0:00:14]} hxg3+ {[%emt 0:02:32]} 31. hxg3 {[%emt 0:00:06]} Bc4 {[%emt 0:03:51]} 32. Rb2 {[%emt 0:02:14]} a6 {[%emt 0:03:30]} 33. Ba3 {[%emt 0:03:54]} Bb5 {[%emt 0:00:44]} 34. Rc2 {[%emt 0:00:42]} Rh8 {[%emt 0:01:29]} 35. Kg2 {[%emt 0:00:35]} g5 {[%emt 0:04:34]} 36. Bd6 {[%emt 0:00:10]} Bc6 {[%emt 0:00:31]} 37. Rb2 {[%emt 0:00:15]} Bb5 {[%emt 0:00:10]} 38. Rc2 {[%emt 0:00:03]} Bc6 {[%emt 0:00:45]} 1/2-1/2

[Event "6th Heraklion Fischer 2019"]
[Site "Heraklion"]
[Date "2019.04.30"]
[Round "2.2"]
[White "Gungl, Theo"]
[Black "Mitsis, Georgios"]
[Result "1/2-1/2"]
[ECO "E46"]
[WhiteElo "2329"]
[BlackElo "2362"]
[Annotator "NA"]
[PlyCount "38"]
[EventDate "2019.04.29"]
[EventType "tourn"]
[EventCountry "GRE"]
[SourceTitle "playchess.com"]
[Source "ChessBase"]
[SourceQuality "1"]
[TimeControl "40/5400+30:1800+30"]

1. d4 {[%emt 0:00:00]} Nf6 {[%emt 0:00:00]} 2. c4 {[%emt 0:00:00]} e6 {[%emt 0:00:00]} 3. Nc3 {[%emt 0:00:00]} Bb4 {[%emt 0:00:00]} 4. e3 {[%emt 0:00:00]} O-O {[%emt 0:00:06]} 5. Nge2 {[%emt 0:00:00]} c6 {[%emt 0:00:20]} 6. a3 {[%emt 0:00:14]} Ba5 {[%emt 0:00:07]} 7. c5 {[%emt 0:00:13]} Bc7 {[%emt 0:08:16]} 8. g3 {[%emt 0:01:18]} b6 {[%emt 0:03:26]} 9. b4 {[%emt 0:11:54]} a5 {[%emt 0:00:14]} 10. Bb2 {[%emt 0:01:20]} axb4 {[%emt 0:00:54]} 11. axb4 {[%emt 0:00:02]} Rxa1 {[%emt 0:00:21]} 12. Qxa1 {[%emt 0:00:23]} d5 $11 {[%emt 0:12:44]} 13. cxb6 {[%emt 0:21:06]} Bxb6 {[%emt 0:00:07]} 14. Bg2 {[%emt 0:01:36]} Ba6 {[%emt 0:02:00]} 15. O-O {[%emt 0:04:17]} Bc7 {[%emt 0:04:20]} 16. Qa4 {[%emt 0:10:29]} Bd6 {[%emt 0:00:47]} 17. b5 {[%emt 0:17:37]} cxb5 {[%emt 0:00:23]} 18. Nxb5 {[%emt 0:00:06]} Bxb5 {[%emt 0:03:55]} 19. Qxb5 {[%emt 0:00:02]} Nbd7 {[%emt 0:00:17]} 1/2-1/2

[Event "6th Heraklion Fischer 2019"]
[Site "Heraklion"]
[Date "2019.04.30"]
[Round "2.3"]
[White "Leenhouts, Koen"]
[Black "Moksh Amit Doshi"]
[Result "1-0"]
[ECO "E04"]
[WhiteElo "2446"]
[BlackElo "2256"]
[Annotator "NA"]
[PlyCount "71"]
[EventDate "2019.04.29"]
[EventType "tourn"]
[EventCountry "GRE"]
[SourceTitle "playchess.com"]
[Source "ChessBase"]
[SourceQuality "1"]
[TimeControl "40/5400+30:1800+30"]

1. d4 {[%emt 0:00:30]} Nf6 {[%emt 0:01:32]} 2. c4 {[%emt 0:00:06]} e6 {[%emt 0:00:06]} 3. g3 {[%emt 0:00:14]} d5 {[%emt 0:01:09]} 4. Nf3 {[%emt 0:00:07]} dxc4 {[%emt 0:00:09]} 5. Bg2 {[%emt 0:00:07]} c5 {[%emt 0:00:05]} 6. O-O {[%emt 0:00:12]} Nc6 {[%emt 0:00:06]} 7. Qa4 {[%emt 0:00:16]} Bd7 {[%emt 0:00:10]} 8. Qxc4 {[%emt 0:00:11]} cxd4 {[%emt 0:00:05]} 9. Nxd4 {[%emt 0:00:23]} Rc8 {[%emt 0:00:06]} 10. Nc3 {[%emt 0:00:22]} Nxd4 {[%emt 0:00:07]} 11. Qxd4 {[%emt 0:00:09]} Bc5 {[%emt 0:00:06]} 12. Qh4 {[%emt 0:01:24]} h6 {[%emt 0:00:26]} 13. Bxb7 {[%emt 0:07:24]} Rb8 {[%emt 0:00:07]} 14. Bg2 {[%emt 0:03:17]} Rb4 $14 {[%emt 0:02:17]} 15. e4 {[%emt 0:01:41]} Bd4 {[%emt 0:12:17]} 16. a3 {[%emt 0:13:07]} Rb3 {[%emt 0:03:20]} 17. e5 {[%emt 0:30:50]} Bxe5 {[%emt 0:01:53]} 18. Re1 {[%emt 0:02:11]} Rxc3 {[%emt 0:33:28]} 19. Rxe5 {[%emt 0:01:15]} Rc2 {[%emt 0:00:46]} 20. Be3 {[%emt 0:03:52]} Qc7 {[%emt 0:02:54]} 21. Qd4 {[%emt 0:05:23]} O-O {[%emt 0:06:16]} 22. Rc5 {[%emt 0:00:10]} Rxc5 {[%emt 0:00:06]} 23. Qxc5 {[%emt 0:00:04]} Qb8 {[%emt 0:03:24]} 24. b4 {[%emt 0:02:41]} a6 {[%emt 0:00:31]} 25. Qd4 {[%emt 0:05:18]} Nd5 {[%emt 0:03:03]} 26. Bd2 {[%emt 0:06:40]} Rc8 {[%emt 0:01:04]} 27. Bxd5 {[%emt 0:00:52]} exd5 {[%emt 0:00:11]} 28. Bc3 {[%emt 0:00:08]} f6 {[%emt 0:01:21]} 29. Qxd5+ {[%emt 0:00:14]} Kh8 {[%emt 0:00:15]} 30. Bxf6 {[%emt 0:02:51]} Bc6 {[%emt 0:00:08]} 31. Qh5 {[%emt 0:01:06]} gxf6 {[%emt 0:00:07]} 32. Qxh6+ {[%emt 0:00:06]} Kg8 {[%emt 0:00:08]} 33. Qg6+ {[%emt 0:00:04]} Kf8 {[%emt 0:00:14]} 34. Qxf6+ {[%emt 0:00:08]} Kg8 {[%emt 0:00:06]} 35. Re1 {[%emt 0:01:26]} Ba8 {[%emt 0:02:44]} 36. Qg5+ {[%emt 0:00:11]} 1-0

[Event "6th Heraklion Fischer 2019"]
[Site "Heraklion"]
[Date "2019.04.30"]
[Round "2.5"]
[White "Tate, Alan"]
[Black "Oglaza, Oskar"]
[Result "1/2-1/2"]
[ECO "E60"]
[WhiteElo "2308"]
[BlackElo "2338"]
[Annotator "NA"]
[PlyCount "116"]
[EventDate "2019.04.29"]
[EventType "tourn"]
[EventCountry "GRE"]
[SourceTitle "playchess.com"]
[Source "ChessBase"]
[SourceQuality "1"]
[TimeControl "40/5400+30:1800+30"]

1. Nf3 {[%emt 0:25:45]} Nf6 {[%emt 0:00:00]} 2. g3 {[%emt 0:00:06]} g6 {[%emt 0:00:00]} 3. b3 {[%emt 0:00:21]} Bg7 {[%emt 0:00:00]} 4. Bb2 {[%emt 0:00:02]} d6 {[%emt 0:00:25]} 5. d4 {[%emt 0:00:29]} O-O {[%emt 0:01:06]} 6. Bg2 {[%emt 0:00:50]} c5 {[%emt 0:00:15]} 7. c4 {[%emt 0:02:57]} Qa5+ {[%emt 0:00:20]} 8. Nc3 {[%emt 0:00:27]} Nc6 {[%emt 0:01:18]} 9. O-O {[%emt 0:07:19]} cxd4 $14 {[%emt 0:00:42]} 10. Nxd4 {[%emt 0:01:51]} Bd7 {[%emt 0:00:10]} 11. e3 {[%emt 0:25:27]} Rab8 {[%emt 0:01:38]} 12. Rc1 {[%emt 0:12:52]} Rfc8 {[%emt 0:02:25]} 13. Qe2 {[%emt 0:01:00]} a6 {[%emt 0:06:46]} 14. h3 {[%emt 0:03:01]} e6 {[%emt 0:18:12]} 15. Rfd1 {[%emt 0:03:01]} Nxd4 {[%emt 0:00:25]} 16. exd4 {[%emt 0:06:35]} b5 {[%emt 0:00:20]} 17. cxb5 {[%emt 0:00:22]} axb5 {[%emt 0:00:04]} 18. d5 {[%emt 0:01:12]} e5 {[%emt 0:00:58]} 19. Ba1 {[%emt 0:03:59]} Ra8 {[%emt 0:11:35]} 20. a4 {[%emt 0:01:20]} bxa4 {[%emt 0:00:24]} 21. bxa4 {[%emt 0:00:09]} Ne8 {[%emt 0:11:54]} 22. h4 {[%emt 0:01:21]} f5 {[%emt 0:00:11]} 23. h5 {[%emt 0:00:31]} e4 {[%emt 0:05:51]} 24. Qd2 {[%emt 0:00:30]} Rab8 {[%emt 0:03:54]} 25. Nxe4 {[%emt 0:00:27]} Qxd2 {[%emt 0:03:41]} 26. Nxd2 {[%emt 0:00:02]} Bxa4 {[%emt 0:00:08]} 27. Re1 {[%emt 0:00:15]} Rxc1 {[%emt 0:04:02]} 28. Rxc1 {[%emt 0:00:01]} Bxa1 {[%emt 0:00:22]} 29. Rxa1 {[%emt 0:00:06]} Rb4 {[%emt 0:00:15]} 30. hxg6 {[%emt 0:01:01]} hxg6 {[%emt 0:00:04]} 31. Nf3 {[%emt 0:00:47]} f4 {[%emt 0:00:48]} 32. g4 {[%emt 0:01:20]} Nf6 {[%emt 0:00:27]} 33. Ng5 {[%emt 0:00:32]} Nxg4 {[%emt 0:06:00]} 34. Ne4 {[%emt 0:00:14]} Ne5 {[%emt 0:01:21]} 35. Nxd6 {[%emt 0:00:19]} f3 {[%emt 0:01:02]} 36. Bh3 {[%emt 0:00:10]} Nd3 {[%emt 0:00:09]} 37. Be6+ {[%emt 0:00:58]} Kf8 {[%emt 0:00:05]} 38. Nf7 {[%emt 0:00:47]} Nf4 {[%emt 0:02:26]} 39. Ne5 {[%emt 0:00:32]} Ke7 {[%emt 0:07:59]} 40. Nxf3 {[%emt 0:00:00]} Nxe6 {[%emt 0:00:00]} 41. Re1 {[%emt 0:03:35]} Bd7 {[%emt 0:00:55]} 42. dxe6 {[%emt 0:04:22]} Bxe6 {[%emt 0:01:48]} 43. Kh2 {[%emt 0:01:46]} Kf6 {[%emt 0:00:29]} 44. Ne5 {[%emt 0:02:51]} Rb5 {[%emt 0:01:43]} 45. Nf3 {[%emt 0:01:00]} Rh5+ {[%emt 0:00:13]} 46. Kg3 {[%emt 0:01:43]} g5 {[%emt 0:01:18]} 47. Re3 {[%emt 0:06:15]} Bf5 {[%emt 0:03:28]} 48. Nh2 {[%emt 0:01:30]} Rh3+ {[%emt 0:00:16]} 49. Kg2 {[%emt 0:00:02]} Rh4 {[%emt 0:00:18]} 50. Rg3 {[%emt 0:06:04]} Rf4 {[%emt 0:02:11]} 51. Ra3 {[%emt 0:00:42]} Rb4 {[%emt 0:01:12]} 52. Kg3 {[%emt 0:00:37]} g4 {[%emt 0:02:27]} 53. Kh4 {[%emt 0:04:04]} Rf4 {[%emt 0:01:18]} 54. Rg3 {[%emt 0:00:59]} Be6 {[%emt 0:01:41]} 55. Nxg4+ {[%emt 0:00:47]} Bxg4 {[%emt 0:01:10]} 56. Rxg4 {[%emt 0:00:06]} Kf5 {[%emt 0:00:14]} 57. Rxf4+ {[%emt 0:00:06]} Kxf4 {[%emt 0:00:04]} 58. f3 {[%emt 0:00:05]} Kxf3 {[%emt 0:00:05]} 1/2-1/2

[Event "6th Heraklion Fischer 2019"]
[Site "Heraklion"]
[Date "2019.05.01"]
[Round "3.2"]
[White "Krishnater Kushager"]
[Black "Tate, Alan"]
[Result "1-0"]
[ECO "E11"]
[WhiteElo "2329"]
[BlackElo "2308"]
[Annotator "NA"]
[PlyCount "97"]
[EventDate "2019.04.29"]
[EventType "tourn"]
[EventCountry "GRE"]
[SourceTitle "playchess.com"]
[Source "ChessBase"]
[SourceQuality "1"]
[TimeControl "40/5400+30:1800+30"]

1. d4 {[%emt 0:00:00]} Nf6 {[%emt 0:00:37]} 2. c4 {[%emt 0:00:00]} e6 {[%emt 0:00:14]} 3. Nf3 {[%emt 0:00:00]} Bb4+ {[%emt 0:08:04]} 4. Nbd2 {[%emt 0:00:11]} b6 {[%emt 0:03:23]} 5. a3 {[%emt 0:00:33]} Bxd2+ {[%emt 0:00:34]} 6. Qxd2 {[%emt 0:00:12]} Bb7 {[%emt 0:01:09]} 7. g3 {[%emt 0:01:23]} a5 {[%emt 0:11:05]} 8. Bg2 {[%emt 0:03:00]} Be4 {[%emt 0:03:39]} 9. O-O {[%emt 0:04:09]} d6 {[%emt 0:03:05]} 10. b3 {[%emt 0:04:20]} Nbd7 {[%emt 0:01:07]} 11. Bb2 {[%emt 0:00:57]} O-O {[%emt 0:02:34]} 12. b4 {[%emt 0:01:49]} axb4 {[%emt 0:03:13]} 13. axb4 {[%emt 0:00:08]} b5 {[%emt 0:01:12]} 14. c5 {[%emt 0:07:42]} Nd5 {[%emt 0:04:44]} 15. Rfc1 {[%emt 0:02:41]} N7f6 {[%emt 0:03:36]} 16. Ne1 {[%emt 0:04:58]} Bxg2 {[%emt 0:00:17]} 17. Kxg2 {[%emt 0:02:23]} Ra4 {[%emt 0:09:44]} 18. Rxa4 {[%emt 0:09:23]} bxa4 {[%emt 0:00:03]} 19. Nc2 {[%emt 0:01:37]} Qa8 {[%emt 0:09:36]} 20. f3 {[%emt 0:00:16]} Rb8 {[%emt 0:03:13]} 21. e4 {[%emt 0:00:49]} Ne7 {[%emt 0:00:12]} 22. Na3 {[%emt 0:00:37]} dxc5 {[%emt 0:12:23]} 23. dxc5 {[%emt 0:02:45]} Rd8 {[%emt 0:00:44]} 24. Qe2 {[%emt 0:10:16]} Nc6 {[%emt 0:02:28]} 25. b5 {[%emt 0:00:50]} Nd4 {[%emt 0:00:56]} 26. Bxd4 {[%emt 0:00:35]} Rxd4 {[%emt 0:00:02]} 27. c6 {[%emt 0:00:51]} Rb4 {[%emt 0:07:13]} 28. Rd1 {[%emt 0:05:17]} h6 {[%emt 0:02:20]} 29. Rd3 {[%emt 0:10:39]} Rb3 {[%emt 0:02:12]} 30. Qc2 {[%emt 0:01:52]} Rxd3 {[%emt 0:00:23]} 31. Qxd3 {[%emt 0:00:01]} Qa5 {[%emt 0:01:49]} 32. Qe3 {[%emt 0:02:37]} Ne8 {[%emt 0:01:12]} 33. e5 {[%emt 0:00:49]} Qb4 {[%emt 0:00:59]} 34. f4 {[%emt 0:01:07]} Kf8 {[%emt 0:01:14]} 35. Qd3 {[%emt 0:02:42]} Qc5 {[%emt 0:01:08]} 36. Nc2 {[%emt 0:00:28]} f6 {[%emt 0:01:03]} 37. Qa3 {[%emt 0:00:50]} Qxa3 {[%emt 0:00:30]} 38. Nxa3 {[%emt 0:00:01]} g5 {[%emt 0:00:31]} 39. Kf3 {[%emt 0:00:24]} h5 {[%emt 0:00:29]} 40. fxg5 {[%emt 0:00:00]} fxg5 {[%emt 0:00:00]} 41. h3 {[%emt 0:03:11]} Ke7 {[%emt 0:01:41]} 42. g4 {[%emt 0:00:07]} h4 {[%emt 0:01:40]} 43. Ke4 {[%emt 0:00:21]} Ng7 {[%emt 0:07:15]} 44. Nc2 {[%emt 0:00:34]} Kd8 {[%emt 0:00:46]} 45. Kd4 {[%emt 0:01:25]} Nf5+ {[%emt 0:01:39]} 46. gxf5 {[%emt 0:00:16]} exf5 {[%emt 0:00:14]} 47. Ne3 {[%emt 0:00:13]} g4 {[%emt 0:03:08]} 48. hxg4 {[%emt 0:00:06]} h3 {[%emt 0:00:09]} 49. Nxf5 {[%emt 0:00:02]} 1-0

[Event "6th Heraklion Fischer 2019"]
[Site "Heraklion"]
[Date "2019.05.01"]
[Round "3.4"]
[White "Mitsis, Georgios"]
[Black "Leenhouts, Koen"]
[Result "1/2-1/2"]
[ECO "A65"]
[WhiteElo "2362"]
[BlackElo "2446"]
[Annotator "NA RC"]
[PlyCount "58"]
[EventDate "2019.04.29"]
[EventType "tourn"]
[EventCountry "GRE"]
[SourceTitle "playchess.com"]
[Source "ChessBase"]
[SourceQuality "1"]
[TimeControl "40/5400+30:1800+30"]

1. d4 {[%emt 0:00:00]} Nf6 {[%emt 0:00:00]} 2. c4 {[%emt 0:00:00]} g6 {[%emt 0:00:00]} 3. f3 {[%emt 0:00:00]} c5 {[%emt 0:04:07]} 4. d5 {[%emt 0:00:10]} Bg7 {[%emt 0:00:08]} 5. e4 {[%emt 0:00:10]} d6 {[%emt 0:00:12]} 6. Nc3 {[%emt 0:00:07]} O-O {[%emt 0:00:16]} 7. Be3 {[%emt 0:00:58]} e6 {[%emt 0:02:08]} 8. Qd2 {[%emt 0:05:13]} exd5 {[%emt 0:00:18]} 9. cxd5 {[%emt 0:00:06]} Nbd7 {[%emt 0:03:52]} 10. Bd3 {[%emt 0:02:04]} Ne5 {[%emt 0:02:33]} 11. Nge2 {[%emt 0:00:31]} a6 {[%emt 0:05:23]} 12. a4 {[%emt 0:00:20]} Nxd3+ {[%emt 0:01:45]} 13. Qxd3 {[%emt 0:00:45]} Rb8 {[%emt 0:05:17]} 14. O-O {[%emt 0:02:17]} Nd7 {[%emt 0:00:32]} 15. f4 {[%emt 0:04:19]} Re8 {[%emt 0:01:03]} 16. h3 {[%emt 0:03:32]} Qe7 {[%emt 0:10:04]} 17. Bd2 {[%emt 0:09:14]} b5 {[%emt 0:09:26]} 18. axb5 {[%emt 0:00:26]} axb5 {[%emt 0:00:07]} 19. Nxb5 {[%emt 0:09:26]} Qxe4 {[%emt 0:06:11]} 20. Qxe4 {[%emt 0:00:30]} Rxe4 {[%emt 0:00:08]} 21. Ng3 {[%emt 0:10:57]} Rc4 {[%emt 0:00:21]} 22. Nxd6 {[%emt 0:02:02]} Rc2 {[%emt 0:00:10]} 23. Be3 {[%emt 0:02:30]} Rbxb2 {[%emt 0:17:16]} 24. Rf2 {[%emt 0:06:23]} Rxf2 {[%emt 0:01:02]} 25. Bxf2 {[%emt 0:00:06]} Rxf2 {[%emt 0:00:09]} 26. Kxf2 {[%emt 0:00:45]} Bxa1 {[%emt 0:00:07]} 27. Nxc8 {[%emt 0:00:05]} f5 {[%emt 0:00:11]} 28. Ne2 {[%emt 0:02:18]} Nf6 {[%emt 0:08:41]} 29. Nb6 {[%emt 0:00:35]} Kf7 {[%emt 0:02:37]} 1/2-1/2

[Event "6th Heraklion Fischer 2019"]
[Site "Heraklion"]
[Date "2019.05.01"]
[Round "3.5"]
[White "Kapnisis, Spyridon"]
[Black "Gungl, Theo"]
[Result "1-0"]
[ECO "B81"]
[WhiteElo "2459"]
[BlackElo "2329"]
[Annotator "ChessBase"]
[PlyCount "67"]
[EventDate "2019.04.29"]
[EventType "tourn"]
[EventCountry "GRE"]
[SourceTitle "playchess.com"]
[Source "ChessBase"]
[SourceQuality "1"]
[TimeControl "40/5400+30:1800+30"]

1. e4 {[%emt 0:00:00]} c5 {[%emt 0:00:00]} 2. Nf3 {[%emt 0:00:00]} d6 {[%emt 0:00:00]} 3. d4 {[%emt 0:00:00]} cxd4 {[%emt 0:00:00]} 4. Nxd4 {[%emt 0:00:04]} Nf6 {[%emt 0:00:00]} 5. Nc3 {[%emt 0:00:04]} a6 {[%emt 0:00:00]} 6. Be3 {[%emt 0:00:32]} e6 {[%emt 0:00:00]} 7. g4 {[%emt 0:00:06]} e5 {[%emt 0:01:00]} 8. Nf5 {[%emt 0:00:07]} h5 {[%emt 0:00:41]} 9. g5 {[%emt 0:00:23]} Nxe4 {[%emt 0:00:30]} 10. Nxg7+ {[%emt 0:00:04]} Bxg7 {[%emt 0:00:07]} 11. Nxe4 {[%emt 0:00:04]} d5 {[%emt 0:00:28]} 12. Ng3 {[%emt 0:00:06]} d4 {[%emt 0:04:21]} 13. Bd2 {[%emt 0:00:11]} Qd5 {[%emt 0:04:19]} 14. c4 {[%emt 0:00:19]} Qc6 {[%emt 0:04:56]} 15. Bd3 {[%emt 0:02:06]} Bg4 {[%emt 0:18:36]} 16. Qc2 {[%emt 0:00:17]} Bf3 {[%emt 0:07:09]} 17. O-O {[%emt 0:03:39]} Nd7 {[%emt 0:05:19]} 18. Nf5 {[%emt 0:08:23]} Bf8 {[%emt 0:01:44]} 19. Nh4 {[%emt 0:24:54]} Bg4 {[%emt 0:21:53]} 20. b4 {[%emt 0:04:38]} Be6 {[%emt 0:11:27]} 21. Rac1 {[%emt 0:13:46]} Be7 {[%emt 0:05:13]} 22. Be4 {[%emt 0:16:14]} Qc7 {[%emt 0:00:42]} 23. Nf5 {[%emt 0:04:42]} Rg8 {[%emt 0:01:17]} 24. Nxe7 {[%emt 0:02:00]} Kxe7 {[%emt 0:00:07]} 25. f4 {[%emt 0:07:17]} Bh3 {[%emt 0:04:05]} 26. Rfe1 {[%emt 0:05:05]} Rae8 {[%emt 0:02:57]} 27. Qb3 {[%emt 0:01:29]} Bg4 {[%emt 0:03:02]} 28. h3 {[%emt 0:00:06]} exf4 {[%emt 0:01:44]} 29. hxg4 {[%emt 0:00:07]} Kd8 {[%emt 0:01:10]} 30. Qf3 {[%emt 0:03:42]} Ne5 {[%emt 0:01:26]} 31. Qxf4 {[%emt 0:00:07]} hxg4 {[%emt 0:00:10]} 32. Bg2 {[%emt 0:02:29]} Kc8 {[%emt 0:00:53]} 33. Qxd4 {[%emt 0:00:49]} Rh8 {[%emt 0:00:41]} 34. Bf4 {[%emt 0:00:46]} 1-0

[Event "6th Heraklion Fischer 2019"]
[Site "Heraklion"]
[Date "2019.05.02"]
[Round "4.2"]
[White "Leenhouts, Koen"]
[Black "Kapnisis, Spyridon"]
[Result "0-1"]
[ECO "A62"]
[WhiteElo "2446"]
[BlackElo "2459"]
[Annotator "ChessBase"]
[PlyCount "68"]
[EventDate "2019.04.29"]
[EventType "tourn"]
[EventCountry "GRE"]
[SourceTitle "playchess.com"]
[Source "ChessBase"]
[SourceQuality "1"]
[TimeControl "40/5400+30:1800+30"]

1. d4 {[%emt 0:00:00]} Nf6 {[%emt 0:02:03]} 2. c4 {[%emt 0:00:00]} e6 {[%emt 0:00:06]} 3. g3 {[%emt 0:01:32]} c5 {[%emt 0:00:24]} 4. d5 {[%emt 0:00:22]} exd5 {[%emt 0:00:09]} 5. cxd5 {[%emt 0:00:07]} d6 {[%emt 0:00:07]} 6. Nc3 {[%emt 0:00:18]} g6 {[%emt 0:00:08]} 7. Nf3 {[%emt 0:00:07]} Bg7 {[%emt 0:00:06]} 8. Bg2 {[%emt 0:00:07]} O-O {[%emt 0:00:09]} 9. O-O {[%emt 0:00:10]} Re8 {[%emt 0:00:16]} 10. Bf4 {[%emt 0:00:22]} Bf5 {[%emt 0:04:21]} 11. Nh4 {[%emt 0:00:18]} Bc8 {[%emt 0:00:09]} 12. Nf3 {[%emt 0:00:07]} Bf5 {[%emt 0:00:30]} 13. Nd2 {[%emt 0:19:21]} Nh5 {[%emt 0:02:34]} 14. Be3 {[%emt 0:00:41]} Nd7 {[%emt 0:22:17]} 15. Nc4 {[%emt 0:03:50]} Ne5 {[%emt 0:00:28]} 16. Nxe5 {[%emt 0:00:28]} Bxe5 {[%emt 0:00:09]} 17. Bd2 {[%emt 0:12:25]} Qd7 {[%emt 0:03:27]} 18. e4 {[%emt 0:06:19]} Bh3 {[%emt 0:01:31]} 19. Re1 {[%emt 0:01:12]} Bxg2 {[%emt 0:05:47]} 20. Kxg2 {[%emt 0:00:07]} f5 {[%emt 0:00:11]} 21. f3 {[%emt 0:24:30]} b5 {[%emt 0:10:27]} 22. exf5 {[%emt 0:06:29]} b4 {[%emt 0:19:13]} 23. Ne4 {[%emt 0:02:24]} gxf5 {[%emt 0:03:16]} 24. Ng5 {[%emt 0:00:41]} Bxb2 {[%emt 0:00:10]} 25. Rb1 {[%emt 0:03:43]} Bf6 {[%emt 0:00:32]} 26. Ne6 {[%emt 0:01:16]} Ng7 {[%emt 0:01:41]} 27. Bh6 {[%emt 0:00:18]} Nxe6 {[%emt 0:05:01]} 28. dxe6 {[%emt 0:00:06]} Rxe6 {[%emt 0:00:55]} 29. Qb3 {[%emt 0:03:28]} d5 {[%emt 0:03:21]} 30. Red1 {[%emt 0:00:06]} Rd8 {[%emt 0:02:12]} 31. Rbc1 {[%emt 0:00:06]} Bc3 {[%emt 0:01:49]} 32. Bg5 {[%emt 0:00:21]} c4 {[%emt 0:00:13]} 33. Qb1 {[%emt 0:00:41]} Rde8 {[%emt 0:00:33]} 34. Kh1 {[%emt 0:01:27]} Re2 {[%emt 0:00:22]} 0-1

[Event "6th Heraklion Fischer 2019"]
[Site "Heraklion"]
[Date "2019.05.02"]
[Round "4.4"]
[White "Tate, Alan"]
[Black "Moksh Amit Doshi"]
[Result "1-0"]
[ECO "A09"]
[WhiteElo "2308"]
[BlackElo "2256"]
[Annotator "NA"]
[PlyCount "73"]
[EventDate "2019.04.29"]
[EventType "tourn"]
[EventCountry "GRE"]
[SourceTitle "playchess.com"]
[Source "ChessBase"]
[SourceQuality "1"]
[TimeControl "40/5400+30:1800+30"]

1. Nf3 {[%emt 0:00:00]} d5 {[%emt 0:00:00]} 2. c4 {[%emt 0:01:18]} d4 {[%emt 0:00:19]} 3. e3 {[%emt 0:01:01]} Nc6 {[%emt 0:00:11]} 4. exd4 {[%emt 0:00:31]} Nxd4 {[%emt 0:00:13]} 5. Nxd4 {[%emt 0:00:18]} Qxd4 {[%emt 0:00:08]} 6. Nc3 {[%emt 0:01:36]} c6 {[%emt 0:00:41]} 7. d3 {[%emt 0:01:50]} Nh6 {[%emt 0:00:22]} 8. Be2 {[%emt 0:30:58]} Nf5 {[%emt 0:02:32]} 9. g4 {[%emt 0:13:00]} Nh4 {[%emt 0:03:08]} 10. Rg1 {[%emt 0:01:45]} e5 {[%emt 0:07:16]} 11. Be3 {[%emt 0:00:24]} Qd8 {[%emt 0:00:51]} 12. Qb3 {[%emt 0:14:55]} Be7 {[%emt 0:03:38]} 13. O-O-O {[%emt 0:01:50]} O-O {[%emt 0:01:38]} 14. Ne4 {[%emt 0:02:07]} Qc7 {[%emt 0:04:45]} 15. Kb1 {[%emt 0:00:24]} c5 {[%emt 0:03:50]} 16. Rdf1 {[%emt 0:05:20]} f5 {[%emt 0:04:32]} 17. gxf5 {[%emt 0:01:55]} Nxf5 {[%emt 0:01:48]} 18. Nc3 {[%emt 0:04:09]} Nd4 {[%emt 0:06:00]} 19. Nd5 {[%emt 0:00:36]} Qd6 {[%emt 0:02:16]} 20. Bxd4 {[%emt 0:02:02]} exd4 {[%emt 0:00:17]} 21. Bg4 {[%emt 0:05:56]} b6 {[%emt 0:00:24]} 22. Bxc8 {[%emt 0:00:35]} Raxc8 {[%emt 0:00:08]} 23. Qd1 {[%emt 0:00:45]} Bh4 {[%emt 0:03:10]} 24. Qg4 {[%emt 0:03:28]} Qh6 {[%emt 0:00:08]} 25. f4 {[%emt 0:01:21]} Rc6 {[%emt 0:03:07]} 26. f5 {[%emt 0:01:06]} Bf6 {[%emt 0:04:01]} 27. Rf3 {[%emt 0:00:18]} Rf7 {[%emt 0:01:58]} 28. Qg2 {[%emt 0:03:31]} Be5 {[%emt 0:01:50]} 29. Rh3 {[%emt 0:00:36]} Qd6 {[%emt 0:00:08]} 30. Qe4 {[%emt 0:00:24]} Bf6 {[%emt 0:01:38]} 31. Rhg3 {[%emt 0:00:39]} Rc8 {[%emt 0:01:30]} 32. Qe6 {[%emt 0:00:16]} Qxe6 {[%emt 0:01:53]} 33. fxe6 {[%emt 0:00:02]} Rff8 {[%emt 0:00:08]} 34. e7 {[%emt 0:01:02]} Rf7 {[%emt 0:00:05]} 35. Nxf6+ {[%emt 0:00:10]} Rxf6 {[%emt 0:00:05]} 36. Rxg7+ {[%emt 0:00:05]} Kh8 {[%emt 0:00:04]} 37. Rg8+ {[%emt 0:00:21]} 1-0